bitfinex/quotes_SOLUSD_20251007
["timestamp","ask_amount","ask_price","bid_price","bid_amount"]
[1759796370406,0.71,231.99,231.93,35.26163248]
[1759796371028,0.71,231.99,231.94,0.69]
[1759796371526,0.71,231.98,231.94,0.69]
[1759796372614,4.31053062,231.99,231.95,30.24]
[1759796372836,5.02053062,231.99,231.95,30.24]
[1759796373214,0.71,231.98,231.95,30.24]
[1759796373547,4.31053062,231.99,231.95,30.24]
[1759796373914,5.02053062,231.99,231.95,30.93]
[1759796374314,4.31053062,231.99,231.96,0.69]
[1759796374522,4.31053062,231.99,231.95,30.24]
[1759796374722,4.31053062,231.99,231.95,30.93]
[1759796375022,4.31034482,232.0,231.95,30.93]
[1759796375524,0.71,231.99,231.95,30.93]
[1759796376226,10.87647521,231.97,231.95,30.24]
[1759796376422,1.75743587,231.96,231.95,30.24]
[1759796376810,12.63391108,231.96,231.95,30.24]
[1759796377014,10.87647521,231.93,231.81,0.65]
[1759796377327,31.67647521,231.91,231.82,26.7]
[1759796377528,0.68,231.9,231.83,30.24]
[1759796377711,10.87647521,231.88,231.83,30.24]
[1759796378132,0.68,231.87,231.83,30.24]
[1759796378430,0.68,231.86,231.83,30.24]
[1759796378628,0.68,231.85,231.83,30.24]
[1759796378824,0.68,231.87,231.83,30.24]
[1759796379023,0.68,231.86,231.83,30.24]
[1759796379328,0.68,231.86,231.84,30.24]
[1759796379629,11.55647521,231.88,231.85,30.24]
[1759796380034,4.31294746,231.86,231.85,30.24]
[1759796380830,4.31269856,231.88,231.85,30.24]
[1759796381005,11.55647521,231.9,231.85,30.89]
[1759796381210,10.87647521,231.93,231.86,0.65]
[1759796381422,10.87647521,231.95,231.86,0.65]
[1759796381734,1.0776006,231.94,231.86,0.65]
[1759796381932,10.87647521,231.95,231.86,0.65]
[1759796382234,0.68,231.99,231.88,20.8]
[1759796382438,1.07751543,231.98,231.9,20.8]
[1759796382610,0.68,231.99,231.9,20.8]
[1759796382611,0.68,231.99,231.91,30.89]
[1759796383133,0.68,231.99,231.92,13.58800539]
[1759796383309,0.68,231.99,231.92,0.65]
[1759796383628,11.55647521,232.01,231.92,13.58744744]
[1759796383833,11.55647521,232.01,231.93,0.65]
[1759796383834,1.07733547,232.0,231.93,0.65]
[1759796384013,10.87647521,232.02,231.93,0.65]
[1759796384330,1.077217,232.01,231.94,4.31145986]
[1759796384527,1.077217,232.01,231.95,0.65]
[1759796384720,1.077217,232.01,231.96,30.26]
[1759796384920,1.077217,232.01,231.96,30.91]
[1759796385120,1.077217,232.01,231.97,0.65]
[1759796385430,4.9897922,232.03,231.98,0.65]
[1759796385731,4.9897922,232.03,231.96,30.91]
[1759796386141,4.9897922,232.03,231.96,35.22099819]
[1759796387411,15.18589128,232.05,231.97,0.65]
[1759796387838,4.30941607,232.05,231.97,0.65]
[1759796388212,4.30941607,232.05,231.98,12.93354314]
[1759796388412,4.30941607,232.05,231.99,0.66]
[1759796388610,10.77050266,232.12,231.99,0.66]
[1759796388925,1.0768978,232.11,232.01,20.8]
[1759796389128,0.69,232.15,232.05,20.8]
[1759796389432,1.07666548,232.14,232.07,25.10904468]
[1759796389635,0.69,232.15,232.08,30.92]
[1759796390215,4.30757541,232.15,232.09,0.66]
[1759796390419,0.2,232.16,232.09,11.53647521]
[1759796390634,1.07652602,232.15,232.09,11.53647521]
[1759796391133,5.19743535,232.16,232.09,0.66]
[1759796391335,1.07652623,232.15,232.09,2.38380357]
[1759796391526,4.30774532,232.14,232.09,2.38380357]
[1759796391722,4.30774532,232.14,232.09,1.72380357]
[1759796391926,4.30774532,232.14,232.1,30.26]
[1759796391927,0.69,232.13,232.1,30.26]
[1759796392121,0.69,232.12,232.1,30.26]
[1759796392516,15.76710863,232.14,232.1,30.26]
[1759796392718,10.87647521,232.12,232.11,30.26]
[1759796392933,11.56647521,232.12,232.11,30.26]
[1759796393137,15.32364963,232.12,232.1,30.26]
[1759796393341,0.69,232.11,232.1,30.26]
[1759796393524,4.99830209,232.11,232.1,30.26]
[1759796394537,10.87647521,232.12,232.1,30.26]
[1759796394743,11.56647521,232.12,232.1,30.26]
[1759796395739,15.87466772,232.12,232.1,30.26]
[1759796398238,4.30830209,232.11,232.1,30.26]
[1759796400625,10.87647521,232.12,232.1,30.26]
[1759796400823,10.87647521,232.12,232.11,30.26]
[1759796401040,11.95311943,232.12,232.11,30.26]
[1759796401251,10.87647521,232.15,232.11,30.92]
[1759796402121,4.30756129,232.15,232.11,30.92]
[1759796402321,11.07647521,232.16,232.12,0.66]
[1759796402541,1.07649236,232.15,232.11,30.26]
[1759796402849,1.07649236,232.15,232.11,30.92]
[1759796403250,1.07649236,232.15,232.12,0.66]
[1759796404542,5.38405588,232.15,232.12,0.66]
[1759796404746,4.30756352,232.15,232.12,0.66]
[1759796405545,15.3838917,232.16,232.12,0.66]
[1759796405925,4.50741649,232.16,232.12,0.66]
[1759796406125,5.19741649,232.16,232.11,30.26]
[1759796406325,5.19741649,232.16,232.11,30.92]
[1759796408029,4.50741649,232.16,232.12,0.66]
[1759796408360,0.69,232.15,232.13,30.22]
[1759796409055,4.50741649,232.16,232.13,30.22]
[1759796409353,4.99774532,232.14,232.06,0.66]
[1759796409541,4.99774532,232.14,232.07,30.22]
[1759796410260,15.76710863,232.14,232.07,30.88]
[1759796410436,15.76710863,232.14,232.07,35.87774532]
[1759796411149,4.99774532,232.14,232.08,0.66]
[1759796411349,0.69,232.14,232.08,0.66]
[1759796411855,4.30755976,232.15,232.08,0.66]
[1759796412060,4.30755976,232.15,232.09,12.92796966]
[1759796412247,4.30755976,232.15,232.1,0.66]
[1759796412552,4.30755976,232.15,232.11,30.88]
[1759796412945,4.99755976,232.15,232.11,30.22]
[1759796413142,4.30755976,232.15,232.11,30.88]
[1759796413534,4.30755976,232.15,232.12,0.66]
[1759796413736,4.50741042,232.16,232.13,0.66]
[1759796415742,4.50741042,232.16,232.11,35.38741042]
[1759796415947,4.50741042,232.16,232.12,0.66]
[1759796416838,4.50741042,232.16,232.13,30.22]
[1759796417949,0.2,232.16,232.14,0.66]
[1759796418573,0.2,232.16,232.15,0.67]
[1759796419839,5.20737422,232.16,232.15,30.22]
[1759796420037,0.2,232.16,232.15,30.22]
[1759796420958,17.09350154,232.16,232.1,12.92685554]
[1759796421155,1.70965211,232.11,232.05,0.67]
[1759796421362,15.38384943,232.16,232.05,0.67]
[1759796421363,10.87647521,232.14,232.06,19.72]
[1759796421546,1.70965211,232.11,232.06,19.72]
[1759796421750,0.7,232.1,232.06,19.72]
[1759796421952,5.00867335,232.09,232.06,19.72]
[1759796422165,4.30867335,232.09,232.06,19.72]
[1759796422862,0.7,232.08,232.03,10.87647521]
[1759796423065,1.70965211,232.04,231.94,0.67]
[1759796423273,1.70965211,231.99,231.94,0.67]
[1759796423566,1.70965211,232.0,231.95,30.95]
[1759796423969,1.70965211,231.97,231.93,33.6]
[1759796424143,1.70965211,231.95,231.93,33.6]
[1759796424349,1.70965211,231.95,231.94,30.28]
[1759796424549,1.70965211,231.96,231.94,30.28]
[1759796424746,13.28612732,231.95,231.94,30.28]
[1759796424967,10.87647521,231.94,231.91,30.3]
[1759796425152,10.87647521,231.91,231.82,0.67]
[1759796425352,1.70965211,231.89,231.83,30.3]
[1759796425555,2.40965211,231.9,231.84,0.67]
[1759796425864,0.7,231.9,231.84,0.67]
[1759796426243,10.87647521,231.89,231.83,30.3]
[1759796426438,1.70965211,231.88,231.83,30.3]
[1759796426642,10.87647521,231.91,231.84,0.67]
[1759796426875,12.58612732,231.91,231.84,0.67]
[1759796427839,1.70965211,231.93,231.84,0.67]
[1759796428038,12.58612732,231.94,231.85,4.31313349]
[1759796428243,12.58612732,231.94,231.86,0.67]
[1759796428466,12.58612732,231.94,231.87,30.32]
[1759796429680,1.70965211,231.96,231.88,0.67]
[1759796429856,1.07742067,231.95,231.88,0.67]
[1759796430056,1.70965211,231.96,231.88,0.67]
[1759796430357,0.7,231.95,231.89,4.31238949]
[1759796431891,2.40965211,231.95,231.88,13.60967952]
[1759796432053,2.40965211,231.95,231.88,17.92222718]
[1759796432375,1.70965211,231.92,231.88,12.93967952]
[1759796432553,1.70965211,231.92,231.87,30.32]
[1759796432751,2.40965211,231.92,231.87,30.32]
[1759796433174,2.40965211,231.92,231.86,25.11293124]
[1759796433357,2.40965211,231.92,231.87,30.3]
[1759796433875,1.70965211,231.9,231.82,0.67]
[1759796434073,15.08948768,231.95,231.82,0.67]
[1759796434074,2.40965211,231.89,231.82,0.67]
[1759796434259,2.40965211,231.89,231.83,34.6134741]
[1759796434452,6.72207774,231.89,231.83,34.6134741]
[1759796435061,5.01242563,231.89,231.83,34.6134741]
[1759796435262,5.01242563,231.89,231.83,30.3]
[1759796435463,6.72207774,231.89,231.83,30.3]
[1759796435963,5.01242563,231.89,231.83,30.3]
[1759796436168,1.70965211,231.86,231.79,0.67]
[1759796436358,5.01296732,231.86,231.8,30.32]
[1759796436883,5.01296732,231.86,231.81,30.34]
[1759796437090,2.38965211,231.85,231.81,30.34]
[1759796437306,0.68,231.84,231.81,30.34]
[1759796437782,11.55647521,231.88,231.81,30.34]
[1759796437996,10.87647521,231.88,231.81,31.06]
[1759796438190,0.68,231.87,231.81,31.06]
[1759796438370,4.99293885,231.87,231.81,30.34]
[1759796439393,6.70259096,231.87,231.81,30.34]
[1759796439886,4.99293885,231.87,231.81,30.34]
[1759796440071,6.70259096,231.87,231.81,30.34]
[1759796440971,1.70965211,231.86,231.81,30.34]
[1759796441482,0.68,231.86,231.81,30.34]
[1759796441786,4.31293885,231.87,231.82,0.72]
[1759796442278,4.99293885,231.87,231.82,0.72]
[1759796445084,4.99304361,231.86,231.81,30.34]
[1759796445278,4.99304361,231.86,231.81,31.06]
[1759796446386,4.31304361,231.86,231.81,30.34]
[1759796446584,4.31304361,231.86,231.82,0.72]
[1759796446889,4.99304361,231.86,231.81,30.34]
[1759796447093,4.99304361,231.86,231.81,31.06]
[1759796447270,4.99304361,231.86,231.82,0.72]
[1759796447661,4.99304361,231.86,231.81,30.34]
[1759796447867,4.99304361,231.86,231.81,31.06]
[1759796448688,0.7,231.85,231.81,30.34]
[1759796449489,5.01324096,231.85,231.79,5.02423645]
[1759796449697,5.01324096,231.85,231.8,30.28]
[1759796449891,5.01324096,231.85,231.8,30.99]
[1759796450595,5.01324096,231.85,231.81,0.71]
[1759796450992,4.31324096,231.85,231.8,30.28]
[1759796451197,4.31324096,231.85,231.81,0.71]
[1759796451998,0.7,231.85,231.81,0.71]
[1759796452903,0.7,231.84,231.8,30.28]
[1759796453197,1.70965211,231.85,231.8,30.28]
[1759796453198,0.7,231.83,231.8,30.28]
[1759796453375,0.7,231.82,231.8,30.28]
[1759796453576,0.7,231.84,231.8,30.28]
[1759796453775,4.31369165,231.82,231.8,30.28]
[1759796453999,5.01369165,231.82,231.8,30.28]
[1759796456905,4.31369165,231.82,231.8,30.28]
[1759796457899,10.87647521,231.83,231.8,30.28]
[1759796458202,11.57647521,231.83,231.8,30.28]
[1759796459002,4.31314413,231.85,231.8,30.99]
[1759796459178,10.87647521,231.84,231.8,30.99]
[1759796459989,15.18997386,231.84,231.8,30.99]
[1759796461496,15.18997386,231.84,231.8,30.28]
[1759796461703,15.18997386,231.84,231.81,0.71]
[1759796462199,15.18997386,231.84,231.8,30.28]
[1759796462505,15.18997386,231.84,231.8,30.99]
[1759796462708,15.88997386,231.84,231.8,30.28]
[1759796463099,4.3131036,231.86,231.81,0.71]
[1759796463299,10.87647521,231.85,231.82,0.71]
[1759796463780,10.87647521,231.85,231.8,30.28]
[1759796464181,0.7,231.84,231.8,30.28]
[1759796464392,0.7,231.84,231.8,30.99]
[1759796464611,0.7,231.83,231.81,30.26]
[1759796464907,4.31352624,231.83,231.81,30.26]
[1759796465907,0.7,231.82,231.81,30.26]
[1759796466893,5.01369165,231.82,231.81,30.26]
[1759796467982,4.31369165,231.82,231.81,30.26]
[1759796470699,5.01369165,231.82,231.81,30.26]
[1759796470903,7.69165796,231.82,231.81,30.26]
[1759796471101,10.87647521,231.81,231.73,0.71]
[1759796471303,2.67796631,231.78,231.74,30.26]
[1759796471508,0.7,231.77,231.74,30.26]
[1759796472600,3.37796631,231.77,231.74,30.26]
[1759796472916,4.31480842,231.76,231.74,30.26]
[1759796473694,2.67796631,231.77,231.74,30.26]
[1759796473908,2.67796631,231.77,231.74,30.97]
[1759796474109,2.67796631,231.81,231.75,0.71]
[1759796474418,2.67796631,231.77,231.74,30.26]
[1759796474625,2.67796631,231.76,231.74,30.26]
[1759796475108,4.3149946,231.75,231.74,30.26]
[1759796476724,7.69296091,231.75,231.74,30.26]
[1759796476931,19.64770584,231.75,231.74,30.26]
[1759796477519,10.87647521,231.74,231.71,0.1]
[1759796477704,2.67796631,231.73,231.71,0.1]
[1759796477900,10.87647521,231.75,231.72,0.71]
[1759796478101,13.55444152,231.75,231.71,0.1]
[1759796478296,14.22444152,231.75,231.71,0.1]
[1759796479019,3.34796631,231.74,231.71,0.1]
[1759796479322,6.99333333,231.73,231.71,0.1]
[1759796479519,7.66333333,231.73,231.71,0.1]
[1759796480514,0.67,231.74,231.71,0.1]
[1759796480722,2.67796631,231.73,231.71,0.1]
[1759796480906,3.34796631,231.73,231.71,0.1]
[1759796481916,2.67796631,231.73,231.71,0.1]
[1759796482636,6.9933405,231.73,231.71,0.1]
[1759796482812,6.99315552,231.74,231.71,0.1]
[1759796483006,7.66315552,231.74,231.71,0.1]
[1759796484126,6.99286649,231.76,231.71,0.1]
[1759796484429,11.54647521,231.75,231.71,0.1]
[1759796484609,4.3151808,231.74,231.71,0.1]
[1759796484922,4.9851808,231.74,231.71,0.1]
[1759796485127,7.66314711,231.74,231.71,0.1]
[1759796487322,4.3151808,231.74,231.71,0.1]
[1759796487610,4.9851808,231.74,231.71,0.1]
[1759796488827,15.19185046,231.73,231.71,0.1]
[1759796489135,15.86185046,231.73,231.71,0.1]
[1759796492414,0.67,231.72,231.71,0.1]
[1759796492618,3.34796631,231.72,231.71,0.1]
[1759796492938,18.53999477,231.72,231.71,0.1]
[1759796495136,10.87647521,231.72,231.71,0.1]
[1759796495314,18.53999477,231.72,231.71,0.1]
[1759796495910,10.87647521,231.72,231.71,0.1]
[1759796496116,15.19202846,231.72,231.71,0.1]
[1759796496325,10.87647521,231.72,231.71,0.1]
[1759796496529,15.19202846,231.72,231.71,0.1]
[1759796499344,4.31537869,231.73,231.71,0.1]
[1759796499649,10.87647521,231.74,231.71,0.1]
[1759796499937,13.55444152,231.74,231.71,0.1]
[1759796500142,5.00536702,231.73,231.71,0.1]
[1759796500622,17.86962742,231.74,231.71,0.1]
[1759796501165,18.55962742,231.74,231.71,0.1]
[1759796502347,0.69,231.73,231.71,0.1]
[1759796503145,6.99315221,231.74,231.71,0.1]
[1759796503727,7.68315221,231.74,231.71,0.1]
[1759796504140,18.47110422,231.74,231.71,0.1]
[1759796504743,0.69,231.73,231.71,0.1]
[1759796505140,3.36796631,231.73,231.71,0.1]
[1759796506152,4.31555325,231.72,231.71,0.1]
[1759796506645,0.69,231.75,231.71,0.1]
[1759796506646,4.31538442,231.73,231.71,0.1]
[1759796506851,4.31538442,231.73,231.71,0.8]
[1759796507638,5.00510369,231.75,231.71,0.8]
[1759796508147,7.68307,231.75,231.71,0.8]
[1759796508348,17.78055651,231.75,231.71,0.1]
[1759796508544,3.33796631,231.74,231.71,0.1]
[1759796509548,4.97536702,231.73,231.71,0.1]
[1759796509952,0.66,231.72,231.71,0.1]
[1759796510652,4.97555325,231.72,231.71,30.36]
[1759796512948,4.31555325,231.72,231.71,30.36]
[1759796513866,7.65351956,231.72,231.71,0.1]
[1759796514152,19.60844227,231.72,231.71,0.1]
[1759796516947,7.90504491,231.84,231.71,25.9257395]
[1759796517161,2.67796631,231.96,231.75,20.8]
[1759796517162,0.66,231.89,231.75,20.8]
[1759796517456,10.87647521,231.88,231.76,0.14]
[1759796517657,10.87647521,231.88,231.77,30.4]
[1759796517866,10.87647521,231.88,231.78,0.14]
[1759796518166,4.97257547,231.88,231.79,4.31424996]
[1759796518342,10.87647521,231.85,231.8,30.4]
[1759796518539,0.66,231.84,231.8,30.4]
[1759796519262,4.31350558,231.83,231.8,30.4]
[1759796520644,0.66,231.82,231.8,30.4]
[1759796520953,11.53647521,231.81,231.8,30.4]
[1759796521141,10.87647521,231.8,231.73,10.87647521]
[1759796521458,0.66,231.79,231.74,30.42]
[1759796521646,0.66,231.78,231.74,30.42]
[1759796521852,0.66,231.77,231.71,0.1]
[1759796522045,1.71395629,231.81,231.75,30.42]
[1759796522046,0.66,231.79,231.75,30.42]
[1759796522244,0.66,231.78,231.75,30.42]
[1759796522671,4.31462225,231.77,231.75,30.42]
[1759796522833,4.97462225,231.77,231.75,30.42]
[1759796523443,0.66,231.76,231.71,0.1]
[1759796523647,0.66,231.75,231.72,30.42]
[1759796523950,0.66,231.74,231.72,30.42]
[1759796524146,10.87647521,231.75,231.72,30.42]
[1759796524352,11.53647521,231.75,231.72,30.42]
[1759796524648,4.3151808,231.74,231.72,30.42]
[1759796524834,4.9751808,231.74,231.72,30.42]
[1759796525756,13.2504315,231.73,231.71,0.1]
[1759796525942,12.5904315,231.72,231.71,0.1]
[1759796526267,13.2504315,231.72,231.71,0.1]
[1759796526951,17.56598475,231.72,231.71,0.1]
[1759796528943,18.64453044,231.72,231.71,0.1]
[1759796532049,10.87647521,231.7,231.69,0.1]
[1759796532257,33.3904315,231.69,231.6,22.73485885]
[1759796532457,12.5904315,231.61,231.6,20.4822314]
[1759796532654,14.32897719,231.61,231.6,20.4822314]
[1759796532853,14.32956039,231.61,231.6,20.4822314]
[1759796533260,18.64716325,231.61,231.6,1e-08]
[1759796533459,10.87647521,231.6,231.58,1e-08]
[1759796533666,10.87647521,231.57,231.45,0.14]
[1759796533851,1.71395629,231.51,231.45,0.14]
[1759796534381,1.71395629,231.5,231.43,20.91479339]
[1759796534552,1.71395629,231.5,231.43,25.23574381]
[1759796534756,0.66,231.58,231.44,30.68]
[1759796534956,1.71395629,231.52,231.45,0.14]
[1759796535180,1.71395629,231.52,231.46,30.54]
[1759796535573,1.71395629,231.51,231.46,30.54]
[1759796536369,1.71395629,231.5,231.46,30.54]
[1759796536567,1.71395629,231.51,231.46,30.68]
[1759796536769,1.71395629,231.51,231.46,35.0003846]
[1759796537172,10.87647521,231.54,231.43,20.77479339]
[1759796537173,1.71395629,231.47,231.43,20.77479339]
[1759796537363,10.87647521,231.49,231.43,20.77479339]
[1759796537364,1.71395629,231.44,231.43,20.77479339]
[1759796537563,13.2504315,231.44,231.43,20.77479339]
[1759796539382,13.2504315,231.44,231.35,30.66]
[1759796539383,10.87647521,231.4,231.35,30.66]
[1759796539582,10.87647521,231.38,231.35,30.66]
[1759796539889,12.5904315,231.38,231.35,30.66]
[1759796540387,10.87647521,231.41,231.35,30.8]
[1759796540562,12.5904315,231.41,231.35,35.12234588]
[1759796540893,20.8,231.45,231.36,0.14]
[1759796541075,10.87647521,231.45,231.36,0.14]
[1759796541279,10.87647521,231.46,231.37,4.32208151]
[1759796541585,10.87647521,231.46,231.38,0.14]
[1759796542086,12.5904315,231.46,231.38,0.14]
[1759796542290,10.87647521,231.46,231.38,0.14]
[1759796542506,12.5904315,231.46,231.38,0.14]
[1759796543065,1.71395629,231.47,231.38,0.14]
[1759796543265,1.71395629,231.47,231.39,4.32170793]
[1759796543791,10.87647521,231.47,231.4,0.14]
[1759796544088,10.87647521,231.47,231.41,30.68]
[1759796544268,12.5904315,231.5,231.42,0.14]
[1759796544964,10.87647521,231.5,231.42,0.14]
[1759796545164,10.87647521,231.5,231.41,30.68]
[1759796545383,12.5904315,231.5,231.42,4.32114769]
[1759796545767,10.87647521,231.5,231.42,4.32114769]
[1759796546211,10.87647521,231.51,231.43,0.14]
[1759796546373,12.5904315,231.51,231.43,0.14]
[1759796546773,10.87647521,231.51,231.44,4.32077428]
[1759796547199,13.2504315,231.54,231.45,0.14]
[1759796547490,11.53647521,231.54,231.45,0.14]
[1759796547796,15.85543114,231.54,231.45,0.14]
[1759796548865,11.53647521,231.54,231.46,4.32040093]
[1759796549170,11.53647521,231.54,231.47,30.66]
[1759796549883,0.66,231.54,231.47,30.66]
[1759796550794,0.66,231.54,231.48,4.32002764]
[1759796552869,10.87647521,231.59,231.49,0.14]
[1759796552870,2.37395629,231.59,231.49,0.14]
[1759796553073,2.37395629,231.59,231.51,20.8]
[1759796553074,0.66,231.59,231.51,20.8]
[1759796553379,0.66,231.59,231.52,0.14]
[1759796553579,0.66,231.59,231.53,30.64]
[1759796554784,0.66,231.59,231.54,4.31890818]
[1759796556583,0.69,231.64,231.55,0.14]
[1759796556980,1.71395629,231.61,231.56,30.64]
[1759796557208,2.40395629,231.6,231.57,30.64]
[1759796557487,0.69,231.59,231.57,30.64]
[1759796557692,0.69,231.58,231.57,30.64]
[1759796558478,15.11095759,231.62,231.57,30.64]
[1759796558679,0.69,231.6,231.57,30.64]
[1759796558897,2.40395629,231.59,231.57,30.64]
[1759796559077,2.40395629,231.58,231.57,30.64]
[1759796559274,0.69,231.58,231.57,30.64]
[1759796560799,4.31798271,231.59,231.57,30.64]
[1759796561090,2.40395629,231.58,231.57,30.64]
[1759796561276,2.40395629,231.58,231.47,4.32020918]
[1759796561476,1.71395629,231.55,231.48,30.62]
[1759796561700,2.40395629,231.55,231.48,30.62]
[1759796561884,0.69,231.54,231.48,30.62]
[1759796562270,6.03264257,231.56,231.48,34.93999612]
[1759796562498,6.72264257,231.56,231.48,34.93999612]
[1759796563073,5.00868628,231.56,231.48,34.93999612]
[1759796564573,21.49,231.61,231.49,0.14]
[1759796565082,23.20395629,231.61,231.49,0.14]
[1759796565682,4.31793597,231.6,231.52,4.31928127]
[1759796565887,0.69,231.61,231.53,30.62]
[1759796566091,5.00761531,231.61,231.53,30.62]
[1759796566496,6.7215716,231.61,231.53,30.62]
[1759796566691,0.69,231.6,231.53,30.62]
[1759796567292,5.00761531,231.61,231.53,30.62]
[1759796567687,5.00761531,231.61,231.54,4.31890818]
[1759796568110,5.00761531,231.61,231.53,34.9389854]
[1759796568515,0.69,231.61,231.54,0.14]
[1759796568678,0.71,231.64,231.56,20.8]
[1759796568879,0.71,231.67,231.57,0.14]
[1759796569086,0.71,231.67,231.58,30.6]
[1759796569820,0.71,231.67,231.59,4.45797573]
[1759796570318,5.0260732,231.7,231.6,0.14]
[1759796571505,5.0260732,231.7,231.62,20.8]
[1759796571703,5.0260732,231.7,231.63,34.93720902]
[1759796573913,4.3160732,231.7,231.63,30.62]
[1759796574115,0.71,231.69,231.63,30.62]
[1759796575309,0.71,231.68,231.63,30.62]
[1759796575513,0.71,231.67,231.63,30.62]
[1759796576106,0.71,231.66,231.63,30.62]
[1759796576409,0.71,231.65,231.57,25.1182844]
[1759796576620,0.71,231.65,231.58,51.38]
[1759796577202,0.71,231.64,231.58,30.58]
[1759796577526,1.71395629,231.6,231.5,0.14]
[1759796577708,2.42395629,231.59,231.51,30.58]
[1759796578014,0.71,231.61,231.52,0.14]
[1759796578209,4.31778929,231.6,231.52,0.14]
[1759796578411,4.31778929,231.6,231.52,4.45917297]
[1759796578916,4.31778929,231.6,231.54,20.8]
[1759796579605,4.31778929,231.6,231.54,25.11889901]
[1759796580312,4.31778929,231.6,231.54,25.11887183]
[1759796580492,0.71,231.59,231.51,30.58]
[1759796580695,2.68335916,231.56,231.45,0.14]
[1759796580897,13.55983437,231.54,231.46,30.58]
[1759796581202,0.71,231.53,231.46,30.58]
[1759796581419,13.55983437,231.54,231.46,30.58]
[1759796581420,0.71,231.52,231.46,30.58]
[1759796581588,5.02942164,231.52,231.46,30.58]
[1759796582509,5.02942164,231.52,231.46,34.90039437]
[1759796582722,4.31903776,231.54,231.46,34.90039437]
[1759796582901,0.71,231.53,231.46,34.90039437]
[1759796583212,4.31867574,231.56,231.49,20.8]
[1759796583523,4.31867574,231.56,231.5,4.31965442]
[1759796583702,4.31815017,231.59,231.51,30.62]
[1759796584024,5.02815017,231.59,231.51,30.62]
[1759796585014,5.02815017,231.59,231.51,34.93946005]
[1759796586201,0.71,231.59,231.51,34.93946005]
[1759796586403,0.71,231.59,231.51,30.62]
[1759796586404,5.02804737,231.59,231.51,30.62]
[1759796586620,0.71,231.58,231.51,34.93946397]
[1759796587320,0.71,231.58,231.51,30.62]
[1759796588197,5.02825347,231.58,231.51,34.93942434]
[1759796588417,20.8,231.55,231.51,30.62]
[1759796589022,20.8,231.55,231.51,30.76]
[1759796589815,20.8,231.55,231.51,34.93940663]
[1759796590003,20.8,231.55,231.51,30.62]
[1759796590204,20.8,231.51,231.41,33.66]
[1759796590503,2.68335916,231.49,231.42,30.6]
[1759796590823,20.8,231.47,231.43,30.62]
[1759796591023,0.71,231.46,231.43,30.62]
[1759796591203,20.8,231.47,231.43,30.62]
[1759796591521,0.71,231.46,231.43,30.62]
[1759796591719,20.8,231.47,231.43,30.62]
[1759796591917,0.71,231.45,231.43,30.62]
[1759796592507,21.51,231.45,231.43,30.62]
[1759796592911,0.71,231.48,231.43,30.62]
[1759796593234,21.58894645,231.6,231.43,30.62]
[1759796593235,20.8,231.49,231.43,34.94095673]
[1759796594418,20.8,231.49,231.43,30.62]
[1759796594626,25.11987619,231.49,231.43,30.62]
[1759796594934,4.31987619,231.49,231.43,30.62]
[1759796595236,5.02987619,231.49,231.43,30.62]
[1759796596725,5.02987619,231.49,231.44,30.6]
[1759796596913,0.71,231.48,231.44,30.6]
[1759796597311,4.31987619,231.49,231.44,30.6]
[1759796597532,0.71,231.47,231.44,30.6]
[1759796598436,0.72,231.46,231.44,30.6]
[1759796598612,0.72,231.45,231.44,30.6]